[Event "Live Chess"]
[Site "Chess.com"]
[Date "2024.06.01"]
[Round "-"]
[White "PureDashingOctopus"]
[Black "TigerTank70"]
[Result "1-0"]
[WhiteElo "2264"]
[BlackElo "2209"]
[TimeControl "300"]
[EndTime "11:45:39 PDT"]
[Termination "PureDashingOctopus won by resignation"]

1. e4 {[%clk 0:04:58.8]} 1... e5 {[%clk 0:04:58.8]} 2. Nf3 {[%clk 0:04:57.5]}
2... Nc6 {[%clk 0:04:57.8]} 3. Bb5 {[%clk 0:04:56.4]} 3... a6 {[%clk 0:04:56.5]}
4. Ba4 {[%clk 0:04:55.4]} 4... Nf6 {[%clk 0:04:55.6]} 5. O-O {[%clk 0:04:54.2]}
5... b5 {[%clk 0:04:54.9]} 6. Bb3 {[%clk 0:04:52.6]} 6... Be7 {[%clk 0:04:54.6]}
7. d3 {[%clk 0:04:50.5]} 7... O-O {[%clk 0:04:53.8]} 8. c3 {[%clk 0:04:49.8]}
8... d5 {[%clk 0:04:49.8]} 9. exd5 {[%clk 0:04:48]} 9... Nxd5 {[%clk 0:04:48.9]}
10. Re1 {[%clk 0:04:47.1]} 10... Bg4 {[%clk 0:04:47.9]} 11. h3 {[%clk 0:04:45]}
11... Bh5 {[%clk 0:04:46.1]} 12. a4 {[%clk 0:04:33.3]} 12... Rb8 {[%clk
0:04:37.1]} 13. axb5 {[%clk 0:04:31.7]} 13... axb5 {[%clk 0:04:35.3]} 14. Ra6
{[%clk 0:04:19.8]} 14... Nb6 {[%clk 0:04:15.5]} 15. Be3 {[%clk 0:04:09.6]} 15...
Qc8 {[%clk 0:04:08.9]} 16. Ra1 {[%clk 0:04:05]} 16... Qf5 {[%clk 0:04:00.8]} 17.
g4 {[%clk 0:03:53.2]} 17... Bxg4 {[%clk 0:03:59.8]} 18. hxg4 {[%clk 0:03:53.1]}
18... Qxg4+ {[%clk 0:03:59.1]} 19. Kf1 {[%clk 0:03:44.5]} 19... Qh3+ {[%clk
0:03:39.8]} 20. Ke2 {[%clk 0:03:40.9]} 20... e4 {[%clk 0:03:26.8]} 21. dxe4
{[%clk 0:03:36.3]} 21... Rbd8 {[%clk 0:03:25.3]} 22. Qc2 {[%clk 0:03:32.8]}
22... Kh8 {[%clk 0:02:54.4]} 23. Nbd2 {[%clk 0:03:30.3]} 23... f5 {[%clk
0:02:50.5]} 24. Rh1 {[%clk 0:03:25.2]} 24... Qg4 {[%clk 0:02:27.2]} 25. Rag1
{[%clk 0:03:22.4]} 25... Rxd2+ {[%clk 0:02:26.3]} 26. Qxd2 {[%clk 0:03:19.4]}
26... Qxe4 {[%clk 0:02:24]} 27. Qd3 {[%clk 0:02:56.1]} 27... Na5 {[%clk
0:01:49.2]} 28. Qxe4 {[%clk 0:02:41.9]} 28... fxe4 {[%clk 0:01:49.1]} 29. Nd2
{[%clk 0:02:33.6]} 29... Nxb3 {[%clk 0:01:38.9]} 30. Nxb3 {[%clk 0:02:30.7]}
30... Nc4 {[%clk 0:01:38.2]} 31. Bc5 {[%clk 0:02:12.3]} 31... Bxc5 {[%clk
0:00:52.5]} 32. Nxc5 {[%clk 0:02:08.6]} 32... e3 {[%clk 0:00:49.1]} 33. fxe3
{[%clk 0:02:05.7]} 33... Re8 {[%clk 0:00:33.5]} 34. Rg3 {[%clk 0:01:55.5]} 34...
Nxb2 {[%clk 0:00:31.6]} 35. Rb1 {[%clk 0:01:49.3]} 1-0

[Event "Live Chess"]
[Site "Chess.com"]
[Date "2024.06.01"]
[Round "-"]
[White "dl_chess"]
[Black "GEMdzq"]
[Result "0-1"]
[WhiteElo "1171"]
[BlackElo "2288"]
[TimeControl "300"]
[EndTime "11:45:42 PDT"]
[Termination "GEMdzq won by checkmate"]

1. e4 {[%clk 0:04:55.3]} 1... Nf6 {[%clk 0:04:57.5]} 2. Nc3 {[%clk 0:04:53.4]}
2... e6 {[%clk 0:04:54.4]} 3. d4 {[%clk 0:04:48.2]} 3... d5 {[%clk 0:04:53]} 4.
e5 {[%clk 0:04:43.5]} 4... Nfd7 {[%clk 0:04:50.8]} 5. Nf3 {[%clk 0:04:41.2]}
5... c5 {[%clk 0:04:49.6]} 6. Bb5 {[%clk 0:04:34.5]} 6... Nc6 {[%clk 0:04:47.7]}
7. Bxc6 {[%clk 0:04:31.5]} 7... bxc6 {[%clk 0:04:46.5]} 8. O-O {[%clk
0:04:19.7]} 8... Be7 {[%clk 0:04:42.8]} 9. Be3 {[%clk 0:04:05.8]} 9... O-O
{[%clk 0:04:39.8]} 10. Qd2 {[%clk 0:04:04.4]} 10... cxd4 {[%clk 0:04:28.4]} 11.
Bxd4 {[%clk 0:03:59.4]} 11... c5 {[%clk 0:04:27.3]} 12. Be3 {[%clk 0:03:24.4]}
12... d4 {[%clk 0:04:27.2]} 13. Nxd4 {[%clk 0:03:22.8]} 13... cxd4 {[%clk
0:04:25.6]} 14. Bxd4 {[%clk 0:03:17.9]} 14... Bb7 {[%clk 0:04:22.9]} 15. Rad1
{[%clk 0:03:15.9]} 15... Nb6 {[%clk 0:04:18.8]} 16. b3 {[%clk 0:03:10]} 16...
Qc7 {[%clk 0:04:15.3]} 17. f4 {[%clk 0:02:39]} 17... Rad8 {[%clk 0:04:09.5]} 18.
Qf2 {[%clk 0:02:23.9]} 18... Rxd4 {[%clk 0:04:07.4]} 19. Rxd4 {[%clk 0:02:06.8]}
19... Qxc3 {[%clk 0:04:05.6]} 20. Rd3 {[%clk 0:01:57.1]} 20... Qc5 {[%clk
0:04:03.6]} 21. Qxc5 {[%clk 0:01:52.2]} 21... Bxc5+ {[%clk 0:04:03.5]} 22. Kh1
{[%clk 0:01:47.4]} 22... Ba6 {[%clk 0:03:59.6]} 23. c4 {[%clk 0:01:44.3]} 23...
Nxc4 {[%clk 0:03:58.6]} 24. bxc4 {[%clk 0:01:42.6]} 24... Bxc4 {[%clk
0:03:58.5]} 25. Rc3 {[%clk 0:01:40.4]} 25... Bxf1 {[%clk 0:03:57]} 26. Rxc5
{[%clk 0:01:39.3]} 26... f6 {[%clk 0:03:52.5]} 27. Rc7 {[%clk 0:01:27.7]} 27...
fxe5 {[%clk 0:03:50.3]} 28. fxe5 {[%clk 0:01:26.8]} 28... Bc4 {[%clk 0:03:49.1]}
29. h3 {[%clk 0:01:21.7]} 29... Bxa2 {[%clk 0:03:46.1]} 30. Rxa7 {[%clk
0:01:19.3]} 30... Bd5 {[%clk 0:03:46]} 31. Rd7 {[%clk 0:01:17.4]} 31... Rf1+
{[%clk 0:03:42.1]} 32. Kh2 {[%clk 0:01:15.2]} 32... Rf2 {[%clk 0:03:41.5]} 33.
Rd8+ {[%clk 0:01:10.1]} 33... Kf7 {[%clk 0:03:39.9]} 34. Rd7+ {[%clk 0:01:09.3]}
34... Kg6 {[%clk 0:03:38.7]} 35. Kg3 {[%clk 0:00:29.6]} 35... Rxg2+ {[%clk
0:03:36.8]} 36. Kh4 {[%clk 0:00:28.1]} 36... Kh6 {[%clk 0:03:29.9]} 37. Rf7
{[%clk 0:00:23.1]} 37... g5# {[%clk 0:03:28.3]} 0-1

[Event "Live Chess"]
[Site "Chess.com"]
[Date "2024.06.01"]
[Round "-"]
[White "Brooms1989"]
[Black "Cruiseylee78"]
[Result "0-1"]
[WhiteElo "1095"]
[BlackElo "1702"]
[TimeControl "300"]
[EndTime "11:46:00 PDT"]
[Termination "Cruiseylee78 won by resignation"]

1. e4 {[%clk 0:04:57.1]} 1... d6 {[%clk 0:04:55.3]} 2. d4 {[%clk 0:04:55]} 2...
Nd7 {[%clk 0:04:54.8]} 3. Nc3 {[%clk 0:04:47.9]} 3... e5 {[%clk 0:04:53.5]} 4.
Nf3 {[%clk 0:04:44.6]} 4... h6 {[%clk 0:04:51.7]} 5. dxe5 {[%clk 0:04:41.3]}
5... dxe5 {[%clk 0:04:50.7]} 6. Bc4 {[%clk 0:04:39]} 6... c6 {[%clk 0:04:49.2]}
7. O-O {[%clk 0:04:36.4]} 7... Qc7 {[%clk 0:04:48.3]} 8. Be3 {[%clk 0:04:27.4]}
8... Ngf6 {[%clk 0:04:42.8]} 9. Qe2 {[%clk 0:04:03.1]} 9... Be7 {[%clk
0:04:41.3]} 10. Rad1 {[%clk 0:03:57.5]} 10... g5 {[%clk 0:04:40.2]} 11. h3
{[%clk 0:03:52.4]} 11... Nf8 {[%clk 0:04:39]} 12. Rd2 {[%clk 0:03:23.9]} 12...
Ng6 {[%clk 0:04:38.2]} 13. Rfd1 {[%clk 0:03:21.4]} 13... Nf4 {[%clk 0:04:36.5]}
14. Bxf4 {[%clk 0:03:17.9]} 14... gxf4 {[%clk 0:04:36.4]} 15. Nh4 {[%clk
0:03:10.7]} 15... Rg8 {[%clk 0:04:33.6]} 16. Nf5 {[%clk 0:03:08.1]} 16... Rg5
{[%clk 0:04:25.4]} 17. Nxh6 {[%clk 0:02:58.9]} 17... Bxh3 {[%clk 0:04:17.3]} 18.
Qf3 {[%clk 0:02:39.3]} 18... Bxg2 {[%clk 0:04:12.2]} 19. Qxg2 {[%clk 0:02:38.6]}
19... Rxg2+ {[%clk 0:04:11]} 20. Kxg2 {[%clk 0:02:38.5]} 20... Rd8 {[%clk
0:03:53.5]} 21. Nxf7 {[%clk 0:01:53.4]} 21... Rxd2 {[%clk 0:03:50.4]} 22. Rxd2
{[%clk 0:01:53.3]} 22... b5 {[%clk 0:03:46.8]} 23. Bb3 {[%clk 0:01:49.3]} 23...
a5 {[%clk 0:03:43.9]} 24. a4 {[%clk 0:01:44.1]} 24... b4 {[%clk 0:03:41]} 25.
Ne2 {[%clk 0:01:36.6]} 25... Nxe4 {[%clk 0:03:40.2]} 0-1

[Event "Live Chess"]
[Site "Chess.com"]
[Date "2024.06.01"]
[Round "-"]
[White "GwaryTek"]
[Black "Grace6363"]
[Result "1-0"]
[WhiteElo "1900"]
[BlackElo "1151"]
[TimeControl "300"]
[EndTime "11:46:03 PDT"]
[Termination "GwaryTek won by resignation"]

1. d4 {[%clk 0:04:51.8]} 1... Nf6 {[%clk 0:04:58.4]} 2. c4 {[%clk 0:04:47.8]}
2... g6 {[%clk 0:04:57.3]} 3. Nc3 {[%clk 0:04:45.8]} 3... d5 {[%clk 0:04:56]} 4.
cxd5 {[%clk 0:04:44.2]} 4... Nxd5 {[%clk 0:04:55.3]} 5. e4 {[%clk 0:04:44.1]}
5... Nxc3 {[%clk 0:04:54.3]} 6. bxc3 {[%clk 0:04:44]} 6... Bg7 {[%clk
0:04:53.8]} 7. Bb5+ {[%clk 0:04:43.3]} 7... c6 {[%clk 0:04:50]} 8. Ba4 {[%clk
0:04:42.5]} 8... b5 {[%clk 0:04:49.1]} 9. Bb3 {[%clk 0:04:40.5]} 9... Qa5 {[%clk
0:04:47.5]} 10. Ne2 {[%clk 0:04:37]} 10... c5 {[%clk 0:04:44.8]} 11. O-O {[%clk
0:04:35]} 11... Nc6 {[%clk 0:04:42.8]} 12. Bd5 {[%clk 0:04:33.7]} 12... Bb7
{[%clk 0:04:40.8]} 13. Rb1 {[%clk 0:04:32.3]} 13... e6 {[%clk 0:04:36.3]} 14.
Bxc6+ {[%clk 0:04:23.7]} 14... Bxc6 {[%clk 0:04:35.1]} 15. d5 {[%clk 0:04:23.6]}
15... exd5 {[%clk 0:04:33.9]} 16. exd5 {[%clk 0:04:23.5]} 16... Bd7 {[%clk
0:04:32.7]} 17. c4 {[%clk 0:04:12.4]} 17... b4 {[%clk 0:04:28.7]} 18. Ng3 {[%clk
0:03:52.2]} 18... O-O {[%clk 0:04:27.3]} 19. Ne4 {[%clk 0:03:49.9]} 19... Qc7
{[%clk 0:04:21.9]} 20. Be3 {[%clk 0:03:46.2]} 20... Bd4 {[%clk 0:04:14.3]} 21.
Bxd4 {[%clk 0:03:36.9]} 21... cxd4 {[%clk 0:04:13.2]} 22. Qxd4 {[%clk
0:03:36.5]} 22... Rae8 {[%clk 0:04:06.1]} 23. Nf6+ {[%clk 0:03:32.9]} 23... Kh8
{[%clk 0:04:02.5]} 24. Nxe8+ {[%clk 0:03:31.5]} 1-0

[Event "Live Chess"]
[Site "Chess.com"]
[Date "2024.06.01"]
[Round "-"]
[White "jimwad"]
[Black "Delacorta"]
[Result "0-1"]
[WhiteElo "1240"]
[BlackElo "1459"]
[TimeControl "300"]
[EndTime "11:46:17 PDT"]
[Termination "Delacorta won by checkmate"]

1. c4 {[%clk 0:04:59.6]} 1... e6 {[%clk 0:04:57.5]} 2. g3 {[%clk 0:04:58.4]}
2... f5 {[%clk 0:04:56.6]} 3. Bg2 {[%clk 0:04:57.5]} 3... Nf6 {[%clk 0:04:55.7]}
4. Nc3 {[%clk 0:04:57]} 4... c6 {[%clk 0:04:54.8]} 5. e3 {[%clk 0:04:56.2]} 5...
d5 {[%clk 0:04:53.7]} 6. cxd5 {[%clk 0:04:53.4]} 6... exd5 {[%clk 0:04:53.6]} 7.
d4 {[%clk 0:04:51.7]} 7... Bd6 {[%clk 0:04:52.1]} 8. Nge2 {[%clk 0:04:50.3]}
8... O-O {[%clk 0:04:50.8]} 9. O-O {[%clk 0:04:49.2]} 9... Bd7 {[%clk
0:04:49.8]} 10. a3 {[%clk 0:04:43.9]} 10... Be8 {[%clk 0:04:48.8]} 11. b4 {[%clk
0:04:42.1]} 11... Bh5 {[%clk 0:04:46.4]} 12. Qd2 {[%clk 0:04:40.2]} 12... Ne4
{[%clk 0:04:42.5]} 13. Nxe4 {[%clk 0:04:38.7]} 13... fxe4 {[%clk 0:04:41.3]} 14.
Nc3 {[%clk 0:04:33.1]} 14... Nd7 {[%clk 0:04:38.7]} 15. b5 {[%clk 0:04:13.8]}
15... Qc7 {[%clk 0:04:13.7]} 16. a4 {[%clk 0:04:02.8]} 16... Rf7 {[%clk
0:04:07]} 17. Ba3 {[%clk 0:03:53.2]} 17... Bxa3 {[%clk 0:04:03.7]} 18. Rxa3
{[%clk 0:03:50.7]} 18... Raf8 {[%clk 0:04:02.3]} 19. Ra2 {[%clk 0:03:45.7]}
19... Nf6 {[%clk 0:04:01.1]} 20. bxc6 {[%clk 0:03:40.3]} 20... bxc6 {[%clk
0:04:00]} 21. Rc2 {[%clk 0:03:38.3]} 21... Ng4 {[%clk 0:03:58.4]} 22. Nxd5
{[%clk 0:03:32]} 22... Qd8 {[%clk 0:03:35.8]} 23. Nf4 {[%clk 0:03:28.8]} 23...
Qg5 {[%clk 0:03:10.9]} 24. Ne6 {[%clk 0:03:23.5]} 24... Qh6 {[%clk 0:02:59.6]}
25. Nxf8 {[%clk 0:03:19.8]} 25... Rxf8 {[%clk 0:02:43.3]} 26. Bxe4 {[%clk
0:03:15.3]} 26... Bg6 {[%clk 0:02:38.6]} 27. Rxc6 {[%clk 0:03:01.8]} 27... Qxh2#
{[%clk 0:02:36.8]} 0-1

[Event "Live Chess"]
[Site "Chess.com"]
[Date "2024.06.01"]
[Round "-"]
[White "Queensandpawns"]
[Black "viktorskliarov"]
[Result "0-1"]
[WhiteElo "2430"]
[BlackElo "2650"]
[TimeControl "300"]
[EndTime "11:46:24 PDT"]
[Termination "viktorskliarov won by resignation"]

1. e4 {[%clk 0:04:55.6]} 1... c5 {[%clk 0:04:58.3]} 2. Nf3 {[%clk 0:04:53.4]}
2... Nc6 {[%clk 0:04:57.8]} 3. Bb5 {[%clk 0:04:51.3]} 3... e6 {[%clk 0:04:56.8]}
4. c3 {[%clk 0:04:49.8]} 4... Nge7 {[%clk 0:04:54.9]} 5. O-O {[%clk 0:04:48.6]}
5... a6 {[%clk 0:04:53.9]} 6. Ba4 {[%clk 0:04:48.3]} 6... b5 {[%clk 0:04:53]} 7.
Bc2 {[%clk 0:04:48.2]} 7... d5 {[%clk 0:04:52.6]} 8. d4 {[%clk 0:04:48]} 8...
cxd4 {[%clk 0:04:50.7]} 9. cxd4 {[%clk 0:04:47.3]} 9... Nb4 {[%clk 0:04:50]} 10.
Nc3 {[%clk 0:04:43.5]} 10... Nxc2 {[%clk 0:04:43.1]} 11. Qxc2 {[%clk 0:04:43.4]}
11... Bb7 {[%clk 0:04:34.7]} 12. exd5 {[%clk 0:04:41.5]} 12... Nxd5 {[%clk
0:04:33.2]} 13. Nxd5 {[%clk 0:04:40.9]} 13... Qxd5 {[%clk 0:04:30.7]} 14. Bf4
{[%clk 0:04:35.6]} 14... Rc8 {[%clk 0:04:24.5]} 15. Qd2 {[%clk 0:04:33]} 15...
Be7 {[%clk 0:04:21.7]} 16. Rac1 {[%clk 0:04:30.1]} 16... O-O {[%clk 0:04:20.1]}
17. Be3 {[%clk 0:04:25.6]} 17... Qxa2 {[%clk 0:04:15.2]} 18. Ne5 {[%clk
0:04:23]} 18... Qd5 {[%clk 0:04:11.9]} 19. f3 {[%clk 0:04:09.5]} 19... Bf6
{[%clk 0:04:07.2]} 20. Ng4 {[%clk 0:04:06.2]} 20... Be7 {[%clk 0:04:00.4]} 21.
Ne5 {[%clk 0:03:45.9]} 21... b4 {[%clk 0:03:57.5]} 22. Rce1 {[%clk 0:03:39]}
22... b3 {[%clk 0:03:38.6]} 23. Nd3 {[%clk 0:03:29.7]} 23... a5 {[%clk
0:03:28.9]} 24. Nf4 {[%clk 0:03:28.5]} 24... Qb5 {[%clk 0:03:19.8]} 25. Bf2
{[%clk 0:03:24.5]} 25... Bb4 {[%clk 0:03:16.5]} 0-1

[Event "Live Chess"]
[Site "Chess.com"]
[Date "2024.06.01"]
[Round "-"]
[White "McFim"]
[Black "educatedlad"]
[Result "0-1"]
[WhiteElo "1589"]
[BlackElo "1763"]
[TimeControl "300"]
[EndTime "11:46:30 PDT"]
[Termination "educatedlad won by resignation"]

1. e4 {[%clk 0:04:56.3]} 1... c5 {[%clk 0:04:57.3]} 2. Nf3 {[%clk 0:04:55]} 2...
e6 {[%clk 0:04:56.8]} 3. Nc3 {[%clk 0:04:52]} 3... Nc6 {[%clk 0:04:53.9]} 4. d4
{[%clk 0:04:49.2]} 4... cxd4 {[%clk 0:04:53.6]} 5. Nxd4 {[%clk 0:04:48.9]} 5...
a6 {[%clk 0:04:52.3]} 6. Be3 {[%clk 0:04:43.6]} 6... Nf6 {[%clk 0:04:48.2]} 7.
f3 {[%clk 0:04:41.9]} 7... d5 {[%clk 0:04:46.5]} 8. Nxc6 {[%clk 0:04:38.9]} 8...
bxc6 {[%clk 0:04:45.2]} 9. exd5 {[%clk 0:04:38]} 9... cxd5 {[%clk 0:04:42.6]}
10. Bg5 {[%clk 0:04:29.8]} 10... d4 {[%clk 0:04:38.8]} 11. Ne4 {[%clk
0:04:27.4]} 11... Qa5+ {[%clk 0:04:31.9]} 12. Bd2 {[%clk 0:04:25.6]} 12... Qe5
{[%clk 0:04:27.4]} 13. Bd3 {[%clk 0:04:23.4]} 13... Nxe4 {[%clk 0:04:21.9]} 14.
Bxe4 {[%clk 0:04:21.7]} 14... f5 {[%clk 0:04:21.4]} 15. O-O {[%clk 0:04:15.4]}
15... fxe4 {[%clk 0:04:20]} 0-1

[Event "Live Chess"]
[Site "Chess.com"]
[Date "2024.06.01"]
[Round "-"]
[White "MagnersCarlsberg2870"]
[Black "Sokolik_UA"]
[Result "1-0"]
[WhiteElo "1882"]
[BlackElo "803"]
[TimeControl "300"]
[EndTime "11:46:32 PDT"]
[Termination "MagnersCarlsberg2870 won by checkmate"]

1. d4 {[%clk 0:04:57.3]} 1... d6 {[%clk 0:04:58.7]} 2. e4 {[%clk 0:04:55.5]}
2... f5 {[%clk 0:04:58.3]} 3. exf5 {[%clk 0:04:54]} 3... Bxf5 {[%clk 0:04:56.1]}
4. Bd3 {[%clk 0:04:53]} 4... Bxd3 {[%clk 0:04:54.4]} 5. Qxd3 {[%clk 0:04:52.2]}
5... Nf6 {[%clk 0:04:54]} 6. Qb5+ {[%clk 0:04:51.1]} 6... Nc6 {[%clk 0:04:48.9]}
7. Qxb7 {[%clk 0:04:50.1]} 7... Nxd4 {[%clk 0:04:39.7]} 8. Na3 {[%clk
0:04:39.2]} 8... e6 {[%clk 0:04:37.2]} 9. Be3 {[%clk 0:04:37.4]} 9... Nf5 {[%clk
0:04:34.2]} 10. Nb5 {[%clk 0:04:29.6]} 10... Be7 {[%clk 0:04:30.1]} 11. Qxa8
{[%clk 0:04:27]} 11... Qxa8 {[%clk 0:04:28.3]} 12. Nxc7+ {[%clk 0:04:25.9]}
12... Kd7 {[%clk 0:04:26.1]} 13. Nxa8 {[%clk 0:04:24.8]} 13... Rxa8 {[%clk
0:04:24.9]} 14. O-O-O {[%clk 0:04:23.3]} 14... Nxe3 {[%clk 0:04:23.6]} 15. fxe3
{[%clk 0:04:22.4]} 15... a5 {[%clk 0:04:22.1]} 16. Nf3 {[%clk 0:04:20.8]} 16...
a4 {[%clk 0:04:19.3]} 17. a3 {[%clk 0:04:19.2]} 17... Ne4 {[%clk 0:04:17.7]} 18.
Rhf1 {[%clk 0:04:13.5]} 18... Bg5 {[%clk 0:04:14.9]} 19. Rd3 {[%clk 0:04:07]}
19... Bh6 {[%clk 0:04:08.8]} 20. Rfd1 {[%clk 0:04:04]} 20... Nf2 {[%clk
0:04:06.2]} 21. Nd4 {[%clk 0:03:58.8]} 21... Nxd1 {[%clk 0:04:02.9]} 22. Kxd1
{[%clk 0:03:57.8]} 22... Rb8 {[%clk 0:03:59.9]} 23. Kc1 {[%clk 0:03:49.8]} 23...
e5 {[%clk 0:03:58.1]} 24. Nf5 {[%clk 0:03:47]} 24... Rb6 {[%clk 0:03:54.5]} 25.
Nxh6 {[%clk 0:03:43.1]} 25... gxh6 {[%clk 0:03:54]} 26. e4 {[%clk 0:03:41.7]}
26... Ke6 {[%clk 0:03:48.4]} 27. Rh3 {[%clk 0:03:40.1]} 27... Rb7 {[%clk
0:03:39.6]} 28. Rxh6+ {[%clk 0:03:38.2]} 28... Kd7 {[%clk 0:03:37.2]} 29. Rxh7+
{[%clk 0:03:37.2]} 29... Kc6 {[%clk 0:03:36.9]} 30. Rxb7 {[%clk 0:03:36.2]}
30... Kxb7 {[%clk 0:03:35.8]} 31. h4 {[%clk 0:03:34.9]} 31... Kc6 {[%clk
0:03:34.6]} 32. h5 {[%clk 0:03:34.1]} 32... Kc5 {[%clk 0:03:34.3]} 33. h6 {[%clk
0:03:33.2]} 33... Kd4 {[%clk 0:03:34.1]} 34. h7 {[%clk 0:03:32.4]} 34... Kxe4
{[%clk 0:03:33.6]} 35. h8=Q {[%clk 0:03:31.2]} 35... Kd4 {[%clk 0:03:33.3]} 36.
Qh3 {[%clk 0:03:28.5]} 36... e4 {[%clk 0:03:32.6]} 37. c3+ {[%clk 0:03:26.8]}
37... Kd5 {[%clk 0:03:31]} 38. Qf5+ {[%clk 0:03:24.7]} 38... Kc4 {[%clk
0:03:29.8]} 39. Qxe4+ {[%clk 0:03:23.6]} 39... Kb3 {[%clk 0:03:29.4]} 40. Qb4+
{[%clk 0:03:22.6]} 40... Ka2 {[%clk 0:03:28.4]} 41. b3 {[%clk 0:03:17.4]} 41...
axb3 {[%clk 0:03:25.3]} 42. c4 {[%clk 0:03:03.5]} 42... Ka1 {[%clk 0:03:21.6]}
43. Qxb3 {[%clk 0:03:01.3]} 43... d5 {[%clk 0:03:20.7]} 44. Qb2# {[%clk
0:03:00.7]} 1-0

[Event "Live Chess"]
[Site "Chess.com"]
[Date "2024.06.01"]
[Round "-"]
[White "ProfPoisson"]
[Black "TJ-W"]
[Result "0-1"]
[WhiteElo "1250"]
[BlackElo "1569"]
[TimeControl "300"]
[EndTime "11:46:40 PDT"]
[Termination "TJ-W won on time"]

1. e4 {[%clk 0:04:55.1]} 1... e5 {[%clk 0:04:57.9]} 2. Nf3 {[%clk 0:04:52.5]}
2... Nc6 {[%clk 0:04:56.6]} 3. d4 {[%clk 0:04:50.2]} 3... exd4 {[%clk
0:04:54.5]} 4. Bc4 {[%clk 0:04:49.8]} 4... Bb4+ {[%clk 0:04:42.5]} 5. c3 {[%clk
0:04:47.2]} 5... dxc3 {[%clk 0:04:40.1]} 6. O-O {[%clk 0:04:46.8]} 6... cxb2
{[%clk 0:04:36.9]} 7. Bxb2 {[%clk 0:04:45.3]} 7... Nf6 {[%clk 0:04:33.6]} 8. a3
{[%clk 0:04:42.1]} 8... Be7 {[%clk 0:04:30.9]} 9. e5 {[%clk 0:04:35.8]} 9... Ng4
{[%clk 0:04:17.3]} 10. h3 {[%clk 0:04:26.2]} 10... Nh6 {[%clk 0:04:11.7]} 11.
Qd5 {[%clk 0:04:07.5]} 11... d6 {[%clk 0:03:58.9]} 12. e6 {[%clk 0:03:57.8]}
12... Bxe6 {[%clk 0:03:53.2]} 13. Qd3 {[%clk 0:03:47.9]} 13... Bf6 {[%clk
0:03:41.4]} 14. Bxf6 {[%clk 0:03:27.8]} 14... Qxf6 {[%clk 0:03:41.3]} 15. Re1
{[%clk 0:03:18.4]} 15... O-O-O {[%clk 0:03:18.1]} 16. Nc3 {[%clk 0:03:03.9]}
16... Bxc4 {[%clk 0:03:11.5]} 17. Qxc4 {[%clk 0:03:00.4]} 17... Rde8 {[%clk
0:03:08.3]} 18. Nd5 {[%clk 0:02:53.3]} 18... Qd8 {[%clk 0:02:37.5]} 19. Reb1
{[%clk 0:02:16.3]} 19... Na5 {[%clk 0:02:16.5]} 20. Qb5 {[%clk 0:02:08.1]} 20...
b6 {[%clk 0:02:09.4]} 21. Rc1 {[%clk 0:01:50.9]} 21... c6 {[%clk 0:01:58]} 22.
Qa6+ {[%clk 0:01:43.4]} 22... Kb8 {[%clk 0:01:52.3]} 23. Rab1 {[%clk 0:01:12.4]}
23... cxd5 {[%clk 0:01:48.2]} 24. Nd4 {[%clk 0:01:01.4]} 24... Nc4 {[%clk
0:01:40.5]} 25. Nc6+ {[%clk 0:00:57.9]} 25... Kc7 {[%clk 0:01:37.7]} 26. Nxd8
{[%clk 0:00:55.2]} 26... Rxd8 {[%clk 0:01:37.6]} 27. Qxa7+ {[%clk 0:00:52.7]}
27... Kc6 {[%clk 0:01:28.4]} 28. Qxb6+ {[%clk 0:00:51.2]} 28... Kd7 {[%clk
0:01:25.7]} 29. Qb7+ {[%clk 0:00:48.4]} 29... Ke6 {[%clk 0:01:22.9]} 30. Re1+
{[%clk 0:00:45.6]} 30... Ne5 {[%clk 0:01:19.3]} 31. f4 {[%clk 0:00:42.7]} 31...
Rb8 {[%clk 0:01:15.7]} 32. Rxe5+ {[%clk 0:00:34.7]} 32... dxe5 {[%clk
0:01:12.9]} 33. Qc6+ {[%clk 0:00:32.6]} 33... Kf5 {[%clk 0:01:00.7]} 34. g4+
{[%clk 0:00:28.1]} 34... Kxf4 {[%clk 0:00:53.9]} 35. Rf1+ {[%clk 0:00:24.3]}
35... Kg5 {[%clk 0:00:50.3]} 36. Qxd5 {[%clk 0:00:18.1]} 36... f6 {[%clk
0:00:46.9]} 37. h4+ {[%clk 0:00:13.7]} 37... Kg6 {[%clk 0:00:42.1]} 38. h5+
{[%clk 0:00:10.9]} 38... Kg5 {[%clk 0:00:40]} 39. Qd2+ {[%clk 0:00:08.8]} 39...
Kh4 {[%clk 0:00:35.8]} 40. Qh2+ {[%clk 0:00:07.4]} 40... Kg5 {[%clk 0:00:33.5]}
41. Rf5+ {[%clk 0:00:06.2]} 41... Nxf5 {[%clk 0:00:30.9]} 42. gxf5 {[%clk
0:00:05.4]} 42... Kxf5 {[%clk 0:00:30.4]} 43. Qh3+ {[%clk 0:00:04.4]} 43... Ke4
{[%clk 0:00:29.5]} 44. Qg2+ {[%clk 0:00:02]} 44... Kd4 {[%clk 0:00:28.6]} 45.
Qd2+ {[%clk 0:00:01]} 45... Kc4 {[%clk 0:00:28.5]} 0-1

[Event "Live Chess"]
[Site "Chess.com"]
[Date "2024.06.01"]
[Round "-"]
[White "SavagePawn7"]
[Black "Kirill-2008"]
[Result "0-1"]
[WhiteElo "683"]
[BlackElo "2416"]
[TimeControl "300"]
[EndTime "11:46:57 PDT"]
[Termination "Kirill-2008 won by resignation"]

1. e4 {[%clk 0:04:53.8]} 1... e5 {[%clk 0:04:57.4]} 2. d4 {[%clk 0:04:52.2]}
2... exd4 {[%clk 0:04:43.7]} 3. c3 {[%clk 0:04:50.5]} 3... d5 {[%clk 0:04:26.2]}
4. exd5 {[%clk 0:04:47.7]} 4... Qxd5 {[%clk 0:04:26.1]} 5. cxd4 {[%clk
0:04:46.2]} 5... Nc6 {[%clk 0:04:02.5]} 6. Nf3 {[%clk 0:04:43.6]} 6... Bg4
{[%clk 0:03:51]} 7. Nc3 {[%clk 0:04:41.8]} 7... Bb4 {[%clk 0:03:41.9]} 8. Be2
{[%clk 0:04:18.4]} 8... Nf6 {[%clk 0:03:31.1]} 9. h3 {[%clk 0:04:14.7]} 9...
Bxf3 {[%clk 0:03:27.9]} 10. Bxf3 {[%clk 0:04:13.5]} 10... Qe6+ {[%clk
0:03:27.3]} 11. Kf1 {[%clk 0:04:08.6]} 11... O-O-O {[%clk 0:03:23.9]} 12. Bxc6
{[%clk 0:03:48.7]} 12... Qxc6 {[%clk 0:03:19.7]} 13. Be3 {[%clk 0:03:43.9]}
13... Rhe8 {[%clk 0:03:14.8]} 14. Qd2 {[%clk 0:03:17.6]} 14... Ne4 {[%clk
0:03:13]} 15. Qc2 {[%clk 0:03:11.4]} 15... Bxc3 {[%clk 0:02:58.3]} 16. bxc3
{[%clk 0:03:09.4]} 16... Nxc3 {[%clk 0:02:58.2]} 17. Rc1 {[%clk 0:03:00.6]}
17... Qa6+ {[%clk 0:02:54.3]} 18. Kg1 {[%clk 0:02:58]} 18... Ne2+ {[%clk
0:02:53.5]} 0-1